[Event "*** Titled Tuesday Blitz"]
[Site "Chess.com"]
[Date "2020.05.12"]
[Round "5"]
[White "Didici"]
[Black "dianosky"]
[Result "1-0"]
[WhiteElo "2625"]
[BlackElo "2410"]
[TimeControl "180+1"]
[EndTime "10:57:17 PDT"]
[Termination "Didici won by resignation"]

1. d4 {[%clk 0:03:00.9]} 1... d5 {[%clk 0:02:59.8]} 2. c4 {[%clk 0:03:00.9]}
2... dxc4 {[%clk 0:03:00.7]} 3. e4 {[%clk 0:02:59.8]} 3... a6 {[%clk 0:03:01.6]}
4. Bxc4 {[%clk 0:02:53.4]} 4... b5 {[%clk 0:03:01.6]} 5. Bd3 {[%clk 0:02:48.1]}
5... Bb7 {[%clk 0:03:01.7]} 6. Nf3 {[%clk 0:02:47.3]} 6... e6 {[%clk 0:03:02.5]}
7. O-O {[%clk 0:02:46.4]} 7... Nf6 {[%clk 0:03:03]} 8. Qe2 {[%clk 0:02:45.6]}
8... c5 {[%clk 0:03:00.3]} 9. dxc5 {[%clk 0:02:40.8]} 9... Bxc5 {[%clk
0:02:58.6]} 10. Rd1 {[%clk 0:02:39.5]} 10... Qb6 {[%clk 0:02:58]} 11. h3 {[%clk
0:02:36.1]} 11... Nbd7 {[%clk 0:02:54.1]} 12. Nbd2 {[%clk 0:02:30.2]} 12... O-O
{[%clk 0:02:34.7]} 13. Nb3 {[%clk 0:02:28.4]} 13... Be7 {[%clk 0:02:31.1]} 14.
Be3 {[%clk 0:02:27.2]} 14... Qd8 {[%clk 0:02:31.4]} 15. Bd4 {[%clk 0:02:07.4]}
15... Rc8 {[%clk 0:02:28.8]} 16. a4 {[%clk 0:01:51.6]} 16... Qc7 {[%clk
0:02:07.9]} 17. axb5 {[%clk 0:01:46.5]} 17... axb5 {[%clk 0:02:08.2]} 18. Ra7
{[%clk 0:00:59.1]} 18... Qb8 {[%clk 0:02:07.5]} 19. e5 {[%clk 0:00:58.2]} 19...
Nh5 {[%clk 0:02:03.8]} 20. Bxb5 {[%clk 0:00:55]} 20... Rfd8 {[%clk 0:01:27.3]}
21. Be3 {[%clk 0:00:47.3]} 21... Bxf3 {[%clk 0:01:18.8]} 22. gxf3 {[%clk
0:00:48.2]} 22... Nxe5 {[%clk 0:01:18.3]} 23. Rxd8+ {[%clk 0:00:36.2]} 23...
Bxd8 {[%clk 0:01:18]} 24. f4 {[%clk 0:00:35.7]} 24... Ng6 {[%clk 0:01:14]} 25.
Qxh5 {[%clk 0:00:34.5]} 25... Bb6 {[%clk 0:01:06.6]} 26. Rd7 {[%clk 0:00:29.6]}
26... Bxe3 {[%clk 0:00:55.4]} 27. fxe3 {[%clk 0:00:30.5]} 27... Qb6 {[%clk
0:00:52.2]} 28. Nd4 {[%clk 0:00:24.1]} 28... Rc1+ {[%clk 0:00:49]} 29. Kf2
{[%clk 0:00:22.1]} 29... Qa5 {[%clk 0:00:49.5]} 30. Qe2 {[%clk 0:00:20.9]} 30...
Rc5 {[%clk 0:00:40.9]} 31. Nb3 {[%clk 0:00:20.3]} 31... Qxb5 {[%clk 0:00:40.8]}
32. Nxc5 {[%clk 0:00:20.2]} 32... Qxc5 {[%clk 0:00:41.3]} 33. Rd8+ {[%clk
0:00:20.5]} 33... Nf8 {[%clk 0:00:41.6]} 34. Qd2 {[%clk 0:00:20.7]} 34... Qe7
{[%clk 0:00:39.4]} 35. Qd6 {[%clk 0:00:20.4]} 35... Qxd6 {[%clk 0:00:35.4]} 36.
Rxd6 {[%clk 0:00:21.3]} 36... f5 {[%clk 0:00:33.7]} 37. b4 {[%clk 0:00:21.3]}
37... Kf7 {[%clk 0:00:34.3]} 38. b5 {[%clk 0:00:20.9]} 38... Ke7 {[%clk
0:00:35.2]} 39. Ra6 {[%clk 0:00:20.6]} 39... Nd7 {[%clk 0:00:36]} 40. b6 {[%clk
0:00:20.6]} 40... Nc5 {[%clk 0:00:30.5]} 41. Ra7+ {[%clk 0:00:19.9]} 41... Kd6
{[%clk 0:00:30.7]} 42. Rxg7 {[%clk 0:00:19.4]} 42... Kc6 {[%clk 0:00:31.1]} 43.
Rxh7 {[%clk 0:00:18.5]} 43... Kxb6 {[%clk 0:00:31.5]} 44. h4 {[%clk 0:00:19.4]}
44... Kc6 {[%clk 0:00:30.4]} 45. h5 {[%clk 0:00:19.3]} 45... Ne4+ {[%clk
0:00:30.4]} 46. Ke2 {[%clk 0:00:18.6]} 46... Nf6 {[%clk 0:00:30]} 47. Rh8 {[%clk
0:00:17.8]} 47... Kd7 {[%clk 0:00:28.4]} 48. h6 {[%clk 0:00:17.2]} 48... Ke7
{[%clk 0:00:29.1]} 49. Kd3 {[%clk 0:00:17]} 49... Kf7 {[%clk 0:00:29.4]} 50. Kd4
{[%clk 0:00:16.4]} 50... Ng4 {[%clk 0:00:26.9]} 51. h7 {[%clk 0:00:12.5]} 51...
Kg7 {[%clk 0:00:27.1]} 52. Re8 {[%clk 0:00:12]} 52... Kxh7 {[%clk 0:00:27.7]}
53. Rxe6 {[%clk 0:00:11.9]} 53... Kg7 {[%clk 0:00:28.3]} 54. Ra6 {[%clk
0:00:11.8]} 54... Kf7 {[%clk 0:00:28.5]} 55. e4 {[%clk 0:00:11.9]} 55... fxe4
{[%clk 0:00:28.3]} 56. Kxe4 {[%clk 0:00:12.8]} 56... Nf6+ {[%clk 0:00:28.3]} 57.
Kf5 {[%clk 0:00:13]} 57... Nd5 {[%clk 0:00:28.8]} 58. Ra7+ {[%clk 0:00:12.5]}
58... Ne7+ {[%clk 0:00:29.2]} 59. Ke5 {[%clk 0:00:12.4]} 59... Kf8 {[%clk
0:00:24.8]} 60. Rc7 {[%clk 0:00:12]} 60... Ng6+ {[%clk 0:00:24.6]} 61. Ke4
{[%clk 0:00:11.7]} 61... Ne7 {[%clk 0:00:21]} 62. f5 {[%clk 0:00:11.6]} 62...
Ke8 {[%clk 0:00:20.5]} 63. Ke5 {[%clk 0:00:11.3]} 63... Kd8 {[%clk 0:00:19.7]}
64. Rc5 {[%clk 0:00:09.4]} 64... Kd7 {[%clk 0:00:16.9]} 65. f6 {[%clk
0:00:08.2]} 65... Ng6+ {[%clk 0:00:17.1]} 66. Kf5 {[%clk 0:00:08.4]} 66... Nh4+
{[%clk 0:00:17.5]} 67. Kg5 {[%clk 0:00:07.5]} 67... Nf3+ {[%clk 0:00:17.6]} 68.
Kg6 {[%clk 0:00:07.7]} 68... Kd6 {[%clk 0:00:18.1]} 69. f7 {[%clk 0:00:05.6]}
69... Nh4+ {[%clk 0:00:16.6]} 70. Kf6 {[%clk 0:00:05.5]} 70... Kxc5 {[%clk
0:00:15.9]} 71. f8=Q+ {[%clk 0:00:05.3]} 71... Kd4 {[%clk 0:00:16.8]} 72. Kg5
{[%clk 0:00:04.9]} 1-0

[Event "*** Titled Tuesday Blitz"]
[Site "Chess.com"]
[Date "2020.05.12"]
[Round "5"]
[White "warmoatmeal"]
[Black "Azoulas1"]
[Result "1-0"]
[WhiteElo "2215"]
[BlackElo "1911"]
[TimeControl "180+1"]
[EndTime "10:57:19 PDT"]
[Termination "warmoatmeal won on time"]

1. Nf3 {[%clk 0:03:00.9]} 1... Nf6 {[%clk 0:02:57.3]} 2. d4 {[%clk 0:03:01]}
2... e6 {[%clk 0:02:54.2]} 3. Bg5 {[%clk 0:03:01.1]} 3... Be7 {[%clk 0:02:52.5]}
4. e3 {[%clk 0:03:00.7]} 4... h6 {[%clk 0:02:46.4]} 5. Bh4 {[%clk 0:02:59.9]}
5... O-O {[%clk 0:02:45.7]} 6. Nbd2 {[%clk 0:02:59.5]} 6... c5 {[%clk 0:02:44]}
7. c3 {[%clk 0:02:59.3]} 7... Nc6 {[%clk 0:02:43]} 8. Bd3 {[%clk 0:02:55]} 8...
d5 {[%clk 0:02:41]} 9. O-O {[%clk 0:02:46.9]} 9... b6 {[%clk 0:02:40.4]} 10. Ne5
{[%clk 0:02:45.6]} 10... Nxe5 {[%clk 0:02:36.2]} 11. dxe5 {[%clk 0:02:44.2]}
11... Nd7 {[%clk 0:02:35.7]} 12. Bxe7 {[%clk 0:02:43.6]} 12... Qxe7 {[%clk
0:02:35.3]} 13. f4 {[%clk 0:02:44.5]} 13... Bb7 {[%clk 0:02:33.5]} 14. Nf3
{[%clk 0:02:44.3]} 14... Rfd8 {[%clk 0:02:29.2]} 15. Qe2 {[%clk 0:02:43]} 15...
Nf8 {[%clk 0:02:28.4]} 16. Rad1 {[%clk 0:02:41.9]} 16... Rac8 {[%clk 0:02:27]}
17. e4 {[%clk 0:02:42.2]} 17... c4 {[%clk 0:02:16.3]} 18. Bc2 {[%clk 0:02:40.6]}
18... dxe4 {[%clk 0:02:15.2]} 19. Bxe4 {[%clk 0:02:41.5]} 19... Bxe4 {[%clk
0:02:13.3]} 20. Qxe4 {[%clk 0:02:42.4]} 20... Qc5+ {[%clk 0:02:12.5]} 21. Kh1
{[%clk 0:02:40.5]} 21... a5 {[%clk 0:02:03.6]} 22. Qb7 {[%clk 0:02:26.9]} 22...
b5 {[%clk 0:01:53.1]} 23. a3 {[%clk 0:02:17.9]} 23... Rc7 {[%clk 0:01:51.2]} 24.
Qe4 {[%clk 0:02:10.4]} 24... Rcd7 {[%clk 0:01:49.2]} 25. Rxd7 {[%clk 0:02:01.3]}
25... Rxd7 {[%clk 0:01:48.1]} 26. Nd4 {[%clk 0:02:00.6]} 26... b4 {[%clk
0:01:44.2]} 27. axb4 {[%clk 0:01:59.9]} 27... axb4 {[%clk 0:01:43.2]} 28. f5
{[%clk 0:01:51.9]} 28... exf5 {[%clk 0:01:28.3]} 29. Qxf5 {[%clk 0:01:52.8]}
29... bxc3 {[%clk 0:01:26.8]} 30. bxc3 {[%clk 0:01:51.7]} 30... Qd5 {[%clk
0:01:24.3]} 31. h3 {[%clk 0:01:42.6]} 31... Rb7 {[%clk 0:01:17.8]} 32. Qg4
{[%clk 0:01:37]} 32... Re7 {[%clk 0:01:13.2]} 33. Nf5 {[%clk 0:01:34]} 33...
Qxe5 {[%clk 0:01:04.7]} 34. Nxe7+ {[%clk 0:01:31.8]} 34... Qxe7 {[%clk
0:01:03.9]} 35. Qxc4 {[%clk 0:01:32.5]} 35... Ne6 {[%clk 0:00:59.6]} 36. Qc8+
{[%clk 0:01:29.4]} 36... Kh7 {[%clk 0:00:58.8]} 37. c4 {[%clk 0:01:29.5]} 37...
Ng5 {[%clk 0:00:50.5]} 38. Qf5+ {[%clk 0:01:28.6]} 38... g6 {[%clk 0:00:48.9]}
39. Qd5 {[%clk 0:01:28.6]} 39... Qe2 {[%clk 0:00:43.8]} 40. Rf6 {[%clk
0:00:51.1]} 40... Qb2 {[%clk 0:00:39.6]} 41. Rxf7+ {[%clk 0:00:40.6]} 41... Nxf7
{[%clk 0:00:38.2]} 42. Qxf7+ {[%clk 0:00:41.5]} 42... Kh8 {[%clk 0:00:38.1]} 43.
Qf8+ {[%clk 0:00:37]} 43... Kh7 {[%clk 0:00:36.6]} 44. Qf7+ {[%clk 0:00:37.9]}
44... Kh8 {[%clk 0:00:35.5]} 45. Qxg6 {[%clk 0:00:34.1]} 45... Qc1+ {[%clk
0:00:34.2]} 46. Kh2 {[%clk 0:00:33.8]} 46... Qf4+ {[%clk 0:00:33.5]} 47. Kg1
{[%clk 0:00:31]} 47... Qc1+ {[%clk 0:00:29.3]} 48. Kf2 {[%clk 0:00:29.4]} 48...
Qf4+ {[%clk 0:00:28.2]} 49. Kg1 {[%clk 0:00:23.6]} 49... Qc1+ {[%clk 0:00:27.5]}
50. Kh2 {[%clk 0:00:24]} 50... Qf4+ {[%clk 0:00:27]} 51. Qg3 {[%clk 0:00:24.6]}
51... Qxc4 {[%clk 0:00:26.2]} 52. Qe5+ {[%clk 0:00:24.5]} 52... Kh7 {[%clk
0:00:25.8]} 53. Qe7+ {[%clk 0:00:22]} 53... Kh8 {[%clk 0:00:24.9]} 54. Qf6+
{[%clk 0:00:20]} 54... Kh7 {[%clk 0:00:24.3]} 55. Qf3 {[%clk 0:00:19.9]} 55...
Qc7+ {[%clk 0:00:22.5]} 56. g3 {[%clk 0:00:20.3]} 56... Qc2+ {[%clk 0:00:21.3]}
57. Qg2 {[%clk 0:00:20.9]} 57... Qf5 {[%clk 0:00:18.3]} 58. h4 {[%clk
0:00:20.2]} 58... Qg4 {[%clk 0:00:17]} 59. Qb7+ {[%clk 0:00:20]} 59... Kh8
{[%clk 0:00:15.6]} 60. Qg2 {[%clk 0:00:20.9]} 60... Kh7 {[%clk 0:00:14.8]} 61.
Qc2+ {[%clk 0:00:19.8]} 61... Kh8 {[%clk 0:00:13.8]} 62. Qf2 {[%clk 0:00:18.9]}
62... Kh7 {[%clk 0:00:12.9]} 63. Kg2 {[%clk 0:00:18.7]} 63... h5 {[%clk
0:00:11.4]} 64. Qf3 {[%clk 0:00:18.3]} 64... Qg6 {[%clk 0:00:10.6]} 65. Kh3
{[%clk 0:00:15.4]} 65... Qe6+ {[%clk 0:00:09.3]} 66. Kg2 {[%clk 0:00:13.9]}
66... Qa2+ {[%clk 0:00:08.4]} 67. Qf2 {[%clk 0:00:13.3]} 67... Qd5+ {[%clk
0:00:07.4]} 68. Kh2 {[%clk 0:00:11.4]} 68... Qe5 {[%clk 0:00:05.1]} 69. Qc2+
{[%clk 0:00:11.1]} 69... Kh8 {[%clk 0:00:04.5]} 70. Qc8+ {[%clk 0:00:06.9]}
70... Kh7 {[%clk 0:00:04.1]} 71. Qb7+ {[%clk 0:00:06.4]} 71... Kh8 {[%clk
0:00:03.9]} 72. Qf3 {[%clk 0:00:06.7]} 72... Kh7 {[%clk 0:00:01.4]} 73. Kh3
{[%clk 0:00:05.4]} 73... Kh8 {[%clk 0:00:01.4]} 74. g4 {[%clk 0:00:05.8]} 1-0

[Event "*** Titled Tuesday Blitz"]
[Site "Chess.com"]
[Date "2020.05.12"]
[Round "5"]
[White "The_Machine04"]
[Black "kingnb"]
[Result "0-1"]
[WhiteElo "2314"]
[BlackElo "2487"]
[TimeControl "180+1"]
[EndTime "10:57:20 PDT"]
[Termination "kingnb won on time"]

1. d4 {[%clk 0:03:00.9]} 1... d6 {[%clk 0:02:57.4]} 2. Nf3 {[%clk 0:03:00.6]}
2... Bg4 {[%clk 0:02:55.9]} 3. Nbd2 {[%clk 0:03:00.3]} 3... Nd7 {[%clk
0:02:54.8]} 4. h3 {[%clk 0:02:57.7]} 4... Bh5 {[%clk 0:02:55.1]} 5. e4 {[%clk
0:02:57.3]} 5... e5 {[%clk 0:02:53]} 6. c3 {[%clk 0:02:56.3]} 6... Ngf6 {[%clk
0:02:48.3]} 7. Be2 {[%clk 0:02:55.7]} 7... Be7 {[%clk 0:02:47.1]} 8. dxe5 {[%clk
0:02:54.9]} 8... dxe5 {[%clk 0:02:44.7]} 9. O-O {[%clk 0:02:54.3]} 9... O-O
{[%clk 0:02:43.3]} 10. Re1 {[%clk 0:02:52.7]} 10... c6 {[%clk 0:02:42.9]} 11. a4
{[%clk 0:02:51.8]} 11... Qc7 {[%clk 0:02:42.7]} 12. Nh2 {[%clk 0:02:42.9]} 12...
Bxe2 {[%clk 0:02:37.8]} 13. Qxe2 {[%clk 0:02:41.9]} 13... Rad8 {[%clk
0:02:38.7]} 14. Nhf1 {[%clk 0:02:39.3]} 14... Rfe8 {[%clk 0:02:38.8]} 15. Ne3
{[%clk 0:02:37.9]} 15... Nc5 {[%clk 0:02:38.8]} 16. Nf5 {[%clk 0:02:30.3]} 16...
Bf8 {[%clk 0:02:38.1]} 17. b4 {[%clk 0:02:30]} 17... Nd3 {[%clk 0:02:35.8]} 18.
Rd1 {[%clk 0:02:28.6]} 18... g6 {[%clk 0:02:35.8]} 19. Ng3 {[%clk 0:02:25.8]}
19... Bh6 {[%clk 0:02:30.1]} 20. Nb3 {[%clk 0:02:19.6]} 20... Nxc1 {[%clk
0:02:28.4]} 21. Nxc1 {[%clk 0:02:18]} 21... Rxd1+ {[%clk 0:02:27.7]} 22. Qxd1
{[%clk 0:02:18.9]} 22... Rd8 {[%clk 0:02:27.9]} 23. Qe2 {[%clk 0:02:17.9]} 23...
Rd2 {[%clk 0:02:25.2]} 24. Qf3 {[%clk 0:02:14.5]} 24... Qd6 {[%clk 0:02:24.8]}
25. Nb3 {[%clk 0:02:13.1]} 25... Rd3 {[%clk 0:02:23.9]} 26. Qe2 {[%clk 0:02:03]}
26... Bf4 {[%clk 0:02:23.2]} 27. Nf1 {[%clk 0:01:54.3]} 27... Rxc3 {[%clk
0:02:19.9]} 28. Nc5 {[%clk 0:01:53.7]} 28... b6 {[%clk 0:02:09.5]} 29. Rd1
{[%clk 0:01:49.3]} 29... Qe7 {[%clk 0:02:08.6]} 30. Na6 {[%clk 0:01:47.9]} 30...
Qe6 {[%clk 0:02:01.6]} 31. a5 {[%clk 0:01:29.1]} 31... Qc4 {[%clk 0:01:59.2]}
32. Qxc4 {[%clk 0:01:27]} 32... Rxc4 {[%clk 0:02:00.1]} 33. g3 {[%clk 0:01:25]}
33... Bh6 {[%clk 0:01:57.4]} 34. f3 {[%clk 0:01:24.6]} 34... Bf8 {[%clk
0:01:56.1]} 35. axb6 {[%clk 0:01:19.4]} 35... axb6 {[%clk 0:01:56.3]} 36. Rd8
{[%clk 0:01:19.2]} 36... Kg7 {[%clk 0:01:56.4]} 37. Rc8 {[%clk 0:01:08.1]} 37...
Rc3 {[%clk 0:01:48.5]} 38. Kg2 {[%clk 0:00:57.1]} 38... Ra3 {[%clk 0:01:46.2]}
39. Nb8 {[%clk 0:00:56.7]} 39... Ra2+ {[%clk 0:01:43.4]} 40. Kg1 {[%clk
0:00:55.1]} 40... c5 {[%clk 0:01:43.6]} 41. b5 {[%clk 0:00:31.6]} 41... c4
{[%clk 0:01:35.9]} 42. Na6 {[%clk 0:00:23.1]} 42... Rc2 {[%clk 0:01:25.3]} 43.
Ne3 {[%clk 0:00:20.3]} 43... Rc1+ {[%clk 0:01:25.2]} 44. Kf2 {[%clk 0:00:20.5]}
44... c3 {[%clk 0:01:26.1]} 45. Ke2 {[%clk 0:00:20.5]} 45... Nd7 {[%clk
0:01:23.3]} 46. Kd3 {[%clk 0:00:19.7]} 46... Nc5+ {[%clk 0:01:19.9]} 47. Nxc5
{[%clk 0:00:19.3]} 47... Bxc5 {[%clk 0:01:20.8]} 48. Nd5 {[%clk 0:00:19]} 48...
Rf1 {[%clk 0:01:01]} 49. Rxc5 {[%clk 0:00:14.5]} 49... bxc5 {[%clk 0:00:55.3]}
50. b6 {[%clk 0:00:14.1]} 50... Rb1 {[%clk 0:00:26.4]} 51. Kxc3 {[%clk
0:00:13.7]} 51... f5 {[%clk 0:00:25]} 52. Kc4 {[%clk 0:00:13]} 52... Rc1+ {[%clk
0:00:23.1]} 53. Kb5 {[%clk 0:00:12.1]} 53... c4 {[%clk 0:00:23.4]} 54. b7 {[%clk
0:00:11.3]} 54... Rb1+ {[%clk 0:00:23.5]} 55. Nb4 {[%clk 0:00:11.4]} 55... c3
{[%clk 0:00:20.4]} 56. b8=Q {[%clk 0:00:11.1]} 56... Kh6 {[%clk 0:00:21.1]} 57.
Qf8+ {[%clk 0:00:10.3]} 57... Kh5 {[%clk 0:00:20.6]} 58. exf5 {[%clk 0:00:09.4]}
58... c2 {[%clk 0:00:19.8]} 59. g4+ {[%clk 0:00:08.2]} 59... Kh4 {[%clk
0:00:19.5]} 60. Qh6+ {[%clk 0:00:07.7]} 60... Kg3 {[%clk 0:00:19.5]} 61. fxg6
{[%clk 0:00:04.5]} 61... hxg6 {[%clk 0:00:18.9]} 0-1

[Event "*** Titled Tuesday Blitz"]
[Site "Chess.com"]
[Date "2020.05.12"]
[Round "5"]
[White "MalakhovKirill"]
[Black "etesungam"]
[Result "0-1"]
[WhiteElo "2626"]
[BlackElo "2435"]
[TimeControl "180+1"]
[EndTime "10:57:21 PDT"]
[Termination "etesungam won by resignation"]

1. e4 {[%clk 0:02:56.5]} 1... e5 {[%clk 0:02:58.2]} 2. d4 {[%clk 0:02:55.3]}
2... exd4 {[%clk 0:02:57.6]} 3. Qxd4 {[%clk 0:02:55.5]} 3... Nc6 {[%clk
0:02:56.3]} 4. Qe3 {[%clk 0:02:55.5]} 4... Nf6 {[%clk 0:02:52.1]} 5. Nc3 {[%clk
0:02:55.4]} 5... Bb4 {[%clk 0:02:50.8]} 6. Bd2 {[%clk 0:02:55.6]} 6... O-O
{[%clk 0:02:48.3]} 7. O-O-O {[%clk 0:02:55.7]} 7... Re8 {[%clk 0:02:40]} 8. Bc4
{[%clk 0:02:45.6]} 8... Na5 {[%clk 0:02:27.9]} 9. Bd3 {[%clk 0:02:38.6]} 9... d5
{[%clk 0:02:26.5]} 10. Qg3 {[%clk 0:02:32.4]} 10... d4 {[%clk 0:02:16.7]} 11.
Nb1 {[%clk 0:02:06.2]} 11... Bxd2+ {[%clk 0:02:13]} 12. Nxd2 {[%clk 0:02:06.4]}
12... c5 {[%clk 0:02:11.9]} 13. f4 {[%clk 0:02:01.2]} 13... Ng4 {[%clk
0:02:10.5]} 14. e5 {[%clk 0:01:58.1]} 14... g6 {[%clk 0:02:05.1]} 15. Ngf3
{[%clk 0:01:51.5]} 15... Be6 {[%clk 0:02:01.9]} 16. h3 {[%clk 0:01:49]} 16...
Ne3 {[%clk 0:02:01.3]} 17. Ne4 {[%clk 0:01:48.9]} 17... Nac4 {[%clk 0:01:51.6]}
18. Nf6+ {[%clk 0:01:48.2]} 18... Kg7 {[%clk 0:01:51.5]} 19. Qh4 {[%clk
0:01:20.7]} 19... h6 {[%clk 0:01:51.3]} 20. Bxc4 {[%clk 0:01:04.7]} 20... Nxc4
{[%clk 0:01:45.7]} 21. Nxe8+ {[%clk 0:01:01.9]} 21... Qxe8 {[%clk 0:01:45.6]}
22. Qf6+ {[%clk 0:01:02.2]} 22... Kg8 {[%clk 0:01:40]} 23. Rhe1 {[%clk
0:00:37.2]} 23... Qa4 {[%clk 0:01:26]} 24. a3 {[%clk 0:00:37.4]} 24... Qb5
{[%clk 0:01:13.2]} 25. b3 {[%clk 0:00:33.1]} 25... Ne3 {[%clk 0:00:58.9]} 26.
Rxe3 {[%clk 0:00:22.5]} 26... dxe3 {[%clk 0:00:57.7]} 27. Rd8+ {[%clk
0:00:21.2]} 27... Rxd8 {[%clk 0:00:57.7]} 28. Qxd8+ {[%clk 0:00:21.5]} 28... Kh7
{[%clk 0:00:57.4]} 29. Qd3 {[%clk 0:00:21.6]} 29... Qxd3 {[%clk 0:00:35.9]} 30.
cxd3 {[%clk 0:00:22]} 30... Bxb3 {[%clk 0:00:36.4]} 31. g4 {[%clk 0:00:22.6]}
31... Bd5 {[%clk 0:00:34.6]} 32. Ne1 {[%clk 0:00:22.4]} 32... Bb3 {[%clk
0:00:30]} 33. Ng2 {[%clk 0:00:21]} 33... e2 {[%clk 0:00:25.3]} 34. Kd2 {[%clk
0:00:21.1]} 34... Bd1 {[%clk 0:00:18]} 35. Ne3 {[%clk 0:00:21.2]} 35... Kg7
{[%clk 0:00:17.2]} 36. Nxd1 {[%clk 0:00:21.7]} 36... exd1=Q+ {[%clk 0:00:16.8]}
37. Kxd1 {[%clk 0:00:22.3]} 37... Kf8 {[%clk 0:00:16.7]} 38. Kd2 {[%clk
0:00:22.7]} 38... Ke7 {[%clk 0:00:16.9]} 39. f5 {[%clk 0:00:23]} 39... gxf5
{[%clk 0:00:16.7]} 40. gxf5 {[%clk 0:00:23.4]} 40... b5 {[%clk 0:00:17.2]} 41.
Kc3 {[%clk 0:00:23.2]} 41... Kd7 {[%clk 0:00:17]} 42. d4 {[%clk 0:00:23.7]}
42... c4 {[%clk 0:00:16.7]} 43. d5 {[%clk 0:00:24.2]} 43... a6 {[%clk
0:00:16.9]} 44. Kb4 {[%clk 0:00:24.5]} 44... Ke8 {[%clk 0:00:17.1]} 45. Kc3
{[%clk 0:00:24.6]} 45... Kd7 {[%clk 0:00:17.5]} 46. h4 {[%clk 0:00:24.8]} 46...
Ke7 {[%clk 0:00:17.5]} 47. f6+ {[%clk 0:00:25]} 47... Kd7 {[%clk 0:00:16.6]} 48.
Kb4 {[%clk 0:00:25.6]} 48... Ke8 {[%clk 0:00:16.5]} 49. e6 {[%clk 0:00:25.4]}
49... fxe6 {[%clk 0:00:16.8]} 50. dxe6 {[%clk 0:00:25.3]} 50... Kf8 {[%clk
0:00:17.1]} 51. Kc3 {[%clk 0:00:25.3]} 51... Ke8 {[%clk 0:00:17.4]} 52. Kd4
{[%clk 0:00:25.8]} 52... Kf8 {[%clk 0:00:17.6]} 53. Ke5 {[%clk 0:00:25.8]} 53...
c3 {[%clk 0:00:17.6]} 54. Kd6 {[%clk 0:00:24.8]} 54... c2 {[%clk 0:00:17.8]} 55.
Kd7 {[%clk 0:00:25.4]} 55... c1=Q {[%clk 0:00:17]} 56. e7+ {[%clk 0:00:26]}
56... Kf7 {[%clk 0:00:17.4]} 57. e8=Q+ {[%clk 0:00:26.9]} 57... Kxf6 {[%clk
0:00:17.7]} 58. Qe6+ {[%clk 0:00:27.3]} 58... Kg7 {[%clk 0:00:18]} 59. Qe5+
{[%clk 0:00:27.8]} 59... Kg6 {[%clk 0:00:18.1]} 60. Qe6+ {[%clk 0:00:27.9]}
60... Kh5 {[%clk 0:00:18.1]} 61. Qe4 {[%clk 0:00:27.9]} 61... Qd2+ {[%clk
0:00:16.9]} 62. Kc6 {[%clk 0:00:28]} 62... Qc3+ {[%clk 0:00:16.7]} 63. Kb6
{[%clk 0:00:28.4]} 63... Qc4 {[%clk 0:00:15.7]} 64. Qe8+ {[%clk 0:00:26.3]}
64... Kxh4 {[%clk 0:00:15.7]} 65. Kxa6 {[%clk 0:00:25.7]} 65... b4+ {[%clk
0:00:15.7]} 66. Ka5 {[%clk 0:00:26.1]} 66... b3 {[%clk 0:00:14]} 67. Qe7+ {[%clk
0:00:25]} 67... Kg4 {[%clk 0:00:13.6]} 68. Qd7+ {[%clk 0:00:24.5]} 68... Kf4
{[%clk 0:00:12.4]} 69. Qd6+ {[%clk 0:00:24]} 69... Ke4 {[%clk 0:00:12.2]} 70.
Qg6+ {[%clk 0:00:24.1]} 70... Kd4 {[%clk 0:00:10.3]} 71. Qg4+ {[%clk 0:00:23.8]}
71... Kc3 {[%clk 0:00:10]} 72. Qf3+ {[%clk 0:00:24.4]} 72... Kb2 {[%clk
0:00:09.6]} 73. Qf2+ {[%clk 0:00:24.6]} 73... Qc2 {[%clk 0:00:09.2]} 74. Qd4+
{[%clk 0:00:25.2]} 74... Qc3+ {[%clk 0:00:08.9]} 75. Qxc3+ {[%clk 0:00:25.6]}
75... Kxc3 {[%clk 0:00:09.8]} 76. Kb5 {[%clk 0:00:26.5]} 76... b2 {[%clk
0:00:10.7]} 77. a4 {[%clk 0:00:27.4]} 77... b1=Q+ {[%clk 0:00:11.6]} 0-1